[Event "Czech Open-GM 2022"]
[Site "Pardubice"]
[Date "2022.07.24"]
[Round "3.22"]
[White "Horak, Martin"]
[Black "Tahay, Alexis"]
[Result "0-1"]
[ECO "B92"]
[WhiteElo "2238"]
[BlackElo "2393"]
[Annotator "TA"]
[PlyCount "156"]
[EventDate "2022.07.22"]
[EventType "swiss"]
[EventCountry "CZE"]
[SourceTitle "playchess.com"]
[Source "ChessBase"]
[SourceQuality "1"]
[TimeControl "40/5400+30:1800+30"]

{[%evp 23,156,2,9,-14,-7,-14,12,21,20,9,34,31,27,38,61,21,66,58,24,20,75,54,50,50,86,-67,-64,-139,-131,-600,-347,-592,-592,-589,-581,-599,-583,-936,-742,-742,-727,-692,-699,-684,-615,-720,-720,-695,-695,-673,-611,-549,-485,-12816,-12817,-12818,-12817,-12818,-12821,-12820,-12821,-12813,-12816,-12822,-12825,-12829,-12831,-12832,-12827,-12827,-12827,-12820,-3226,-3081,-2568,-12838,-12839,-12850,-12850,-12850,-27999,-27999,-27999,-27999,-27999,-27999,-27999,-27999,-27999,-27999,-27999,-27999,-27999,-27999,-27999,-27999,-27999,-27999,-27999,-27999,-27999,-27999,-27999,-27999,-27999,-27999,-27999,-27999,-27999,-27999,-27999,-27999,-27999,-27999,-27999,-27999,-27999,-27999,-27999,-27999,-27999,-27999,-27999,-27999,-27999,-27999,-27999,-27999,-27999,-27999,-27999,-27999,-27999,-27999,-27999]} 1. e4 {[%emt 0:00:04]} c5 {[%emt 0:00:25]} 2. Nf3 d6 3. d4 {[%emt 0:00:45]} cxd4 {[%emt 0:00:35]} 4. Nxd4 {[%emt 0:00:05]} Nf6 {[%emt 0:00:04]} 5. Nc3 {[%emt 0:00:05]} a6 {[%emt 0:00:03]} 6. Be2 {[%emt 0:00:18]} e5 {[%emt 0:00:05]} 7. Nb3 {[%emt 0:00:05]} Be7 {[%emt 0:00:04]} 8. Be3 {[%emt 0:00:28]} Be6 {[%emt 0:00:18]} 9. Nd5 {[%emt 0:00:59]} Nxd5 {[%emt 0:00:18]} 10. exd5 {[%emt 0:00:07]} Bc8 {[%emt 0:01:01]} 11. O-O {[%emt 0:02:03]} O-O {[%emt 0:00:45]} 12. Qd2 {[%emt 0:09:49]} Nd7 {[%emt 0:01:15]} 13. Na5 {[%emt 0:03:34] B92: Sicilian Najdorf: 6 Be2.} f5 {[%emt 0:05:07] And now ...f4 would win.} 14. f4 {[%emt 0:01:32] [#]} Bf6 $146 {[%emt 0:06:09]} ({Predecessor:} 14... exf4 15. Bxf4 Nc5 16. Bf3 g5 17. Be3 g4 18. Be2 Bf6 19. Rae1 Be5 20. Bxg4 Ne4 {1-0 (34) Papp,G (2607)-Raja,H (2427) Caleta 2018}) 15. fxe5 {[%emt 0:06:45] The position is equal.} Nxe5 {[%emt 0:02:46]} 16. c4 {[%emt 0:01:15]} g5 {[%emt 0:09:23]} 17. b4 {[%emt 0:07:46]} f4 {[%emt 0:05:22]} 18. Bd4 {[%emt 0:01:15]} Qe7 {[%emt 0:03:14]} 19. Rac1 {[%emt 0:07:48]} Qg7 {[%emt 0:02:15][%cal Oe5f3] aiming for ...Nf3+!} 20. Nb3 {[%emt 0:04:36]} Bd7 {[%emt 0:06:39]} 21. c5 {[%emt 0:03:02]} Ba4 {[%emt 0:02:16]} (21... g4 $11 22. Qxf4 Bg5) 22. Ba1 {[%emt 0:04:41]} Bxb3 {[%emt 0:01:10]} 23. axb3 {[%emt 0:00:07]} g4 {[%emt 0:03:57][%cal Bg5g4,Bg4f3][%mdl 32]} 24. Rxf4 {[%emt 0:15:06]} (24. Qxf4 $16 {Threatens to win with Qg3.} Bg5 25. Bxe5 dxe5 26. Qxg4 Be3+ 27. Kh1 Bxc1 28. Rxc1) 24... Bg5 $15 {[%emt 0:01:41]} 25. g3 {[%emt 0:05:06] [#]} ({White should play} 25. Rxf8+ $15 Rxf8 26. Qc2 (26. Bxe5 $2 Qxe5 27. Qd1 Bxc1 $19)) 25... Qg6 $1 $17 {[%emt 0:02:58]} ({Don't play} 25... Bxf4 $6 26. gxf4 Qh6 27. Rf1 $14) 26. Rcf1 {[%emt 0:03:09][%mdl 8192] This costs White the game.} ({Not} 26. Bxe5 $2 dxe5 27. Rcf1 (27. Rxf8+ $2 Rxf8 28. Qc2 Be3+ 29. Kh1 Bxc1 $19) 27... exf4 $19) (26. Qc2 $17 Bxf4 27. gxf4 Nf3+ 28. Bxf3 gxf3+ 29. Qxg6+ hxg6 30. cxd6 Rxf4 31. Rc7) 26... Bxf4 {[%emt 0:00:31]} 27. gxf4 {[%emt 0:00:40]} (27. Rxf4 {was the only defense.} Nf3+ 28. Bxf3 gxf3 29. Rxf8+ Rxf8 30. Bd4 Qb1+ 31. Kf2) 27... Nf3+ $1 $19 {[%emt 0:00:44]} 28. Bxf3 {[%emt 0:00:12]} gxf3+ {[%emt 0:00:04]} 29. Kh1 {[%emt 0:00:14] [#] Black must now prevent Rg1.} Rxf4 $3 {[%emt 0:01:27][%mdl 512] Strongly threatening ...Raf8.} 30. cxd6 {[%emt 0:04:03]} (30. Qf2 Re8) 30... Qg2+ {[%emt 0:01:24]} 31. Qxg2+ {[%emt 0:00:07]} fxg2+ {[%emt 0:00:03][%mdl 64] Discovered Attack} 32. Kxg2 {[%emt 0:00:08]} Rxf1 {[%emt 0:00:03]} 33. Kxf1 {[%emt 0:00:06][%mdl 4096] Endgame KR-KB} Kf7 {[%emt 0:00:10]} 34. Ke2 {[%emt 0:00:41]} Rd8 {[%emt 0:02:01]} 35. Kd3 {[%emt 0:00:29]} Rxd6 {[%emt 0:00:02]} 36. Kc4 {[%emt 0:00:23]} Ke7 {[%emt 0:01:14]} 37. Be5 {[%emt 0:01:41]} Rg6 {[%emt 0:00:17]} 38. b5 {[%emt 0:01:58]} (38. Bg3 $142 b6 39. Kd3) 38... axb5+ {[%emt 0:01:20]} 39. Kc5 {[%emt 0:01:07]} Rg5 {[%emt 0:01:37]} 40. Bg3 {[%emt 0:00:57]} Kd7 {[%emt 0:00:19]} 41. Bf4 {[%emt 0:31:25]} Rf5 {[%emt 0:30:07]} 42. Bg3 {[%emt 0:00:12]} h5 {[%emt 0:00:08][%cal Bh7h5,Bh5h4,Bh4h3][%mdl 32]} 43. b4 {[%emt 0:00:21]} Rg5 {[%emt 0:01:18]} 44. Bf4 {[%emt 0:00:26]} Rg4 {[%emt 0:03:38]} 45. Be5 {[%emt 0:00:41]} h4 {[%emt 0:00:34]} 46. Bf6 {[%emt 0:00:49]} h3 {[%emt 0:00:24]} 47. Be5 {[%emt 0:00:26]} Rg5 {[%emt 0:03:22]} (47... b6+ $142 48. Kxb5 Rg5) 48. Bf4 {[%emt 0:00:12]} b6+ {[%emt 0:01:50]} 49. Kxb5 {[%emt 0:04:41]} Rxd5+ {[%emt 0:00:06]} 50. Kxb6 {[%emt 0:00:05]} Rd4 $1 {[%emt 0:00:07][%csl LRb4,LRf4]} 51. Be5 {[%emt 0:00:27]} Rxb4+ {[%emt 0:00:03]} 52. Kc5 {[%emt 0:00:07] Black mates.} Re4 {[%emt 0:00:49]} 53. Kd5 {[%emt 0:00:07]} Re2 {[%emt 0:00:02]} 54. Bg3 {[%emt 0:01:01]} Ke7 {[%emt 0:00:28]} 55. Kd4 {[%emt 0:00:36]} Kf6 {[%emt 0:00:13]} 56. Kd3 {[%emt 0:00:26]} Re6 {[%emt 0:00:06]} 57. Bf4 {[%emt 0:00:36]} Kf5 {[%emt 0:00:07]} 58. Bg3 {[%emt 0:00:07]} Kg4 {[%emt 0:00:05]} 59. Bf2 {[%emt 0:00:37]} Kf3 {[%emt 0:00:19]} 60. Bg3 {[%emt 0:00:09]} Rg6 {[%emt 0:00:02]} 61. Be5 {[%emt 0:00:42]} Rg5 {[%emt 0:00:28]} 62. Bb8 {[%emt 0:00:27]} Rd5+ {[%emt 0:00:02]} 63. Kc3 {[%emt 0:00:25]} Rd8 {[%emt 0:01:02]} 64. Be5 {[%emt 0:00:29]} Ke3 {[%emt 0:00:13]} 65. Bg3 {[%emt 0:01:15]} Rc8+ {[%emt 0:00:02]} 66. Kb3 {[%emt 0:00:08]} Kd3 {[%emt 0:00:36]} 67. Bf4 {[%emt 0:00:35]} Rc3+ {[%emt 0:00:07]} 68. Kb2 {[%emt 0:00:16]} Rc4 {[%emt 0:00:01]} 69. Bg3 {[%emt 0:00:36]} Rc5 {[%emt 0:01:29]} 70. Bf4 {[%emt 0:00:35]} Rc8 {[%emt 0:00:48]} 71. Bg3 {[%emt 0:00:15]} Rc4 {[%emt 0:00:53]} 72. Be5 {[%emt 0:00:28]} Rc2+ {[%emt 0:00:07]} 73. Kb1 {[%emt 0:00:57]} Kd2 {[%emt 0:00:02]} 74. Bf4+ {[%emt 0:00:35]} Kd1 {[%emt 0:00:01]} 75. Bg3 {[%emt 0:00:20]} Rc3 {[%emt 0:00:09]} 76. Be5 {[%emt 0:00:32]} Rb3+ {[%emt 0:00:01]} 77. Ka2 {[%emt 0:00:26]} Rb5 {[%emt 0:00:04]} 78. Bf4 {[%emt 0:00:24]} Ke2 {[%emt 0:00:30] Weighted Error Value: White=0.67/Black=0.22 (precise)} 0-1

[Event "Czech Open-GM 2022"]
[Site "Pardubice"]
[Date "2022.07.24"]
[Round "3.23"]
[White "Delgerdalai, Bayarjavkhlan"]
[Black "Stalmach, Richard"]
[Result "0-1"]
[ECO "B62"]
[WhiteElo "2209"]
[BlackElo "2363"]
[Annotator "TA"]
[PlyCount "86"]
[EventDate "2022.07.22"]
[EventType "swiss"]
[EventCountry "CZE"]
[SourceTitle "playchess.com"]
[Source "ChessBase"]
[SourceQuality "1"]
[TimeControl "40/5400+30:1800+30"]

{[%evp 18,86,30,40,64,18,35,19,9,4,14,-58,-58,-61,-66,-76,-58,-101,-93,-90,-90,-114,-97,-97,-87,-82,-73,-118,-116,-119,-108,-117,-120,-202,-200,-193,-185,-187,-200,-248,-245,-240,-216,-217,-216,-327,-327,-315,-316,-362,-364,-357,-350,-303,-302,-456,-420,-384,-211,-535,-525,-504,-497,-559,-531,-554,-562,-744,-710,-2007,-722]} 1. e4 {[%emt 0:00:03]} c5 {[%emt 0:00:07]} 2. Nf3 {[%emt 0:00:05]} d6 {[%emt 0:00:06]} 3. d4 {[%emt 0:00:06]} cxd4 {[%emt 0:00:05]} 4. Nxd4 {[%emt 0:00:07]} Nf6 {[%emt 0:00:09]} 5. Nc3 {[%emt 0:00:05]} Nc6 {[%emt 0:00:03]} 6. Bg5 {[%emt 0:00:35]} e6 {[%emt 0:00:22]} 7. f3 {[%emt 0:01:32]} Be7 {[%emt 0:05:12]} 8. Qd2 {[%emt 0:02:46]} h6 {[%emt 0:04:44]} 9. Be3 {[%emt 0:00:21]} a6 {[%emt 0:00:57]} 10. O-O-O {[%emt 0:03:27]} Qc7 {[%emt 0:06:36] B66: Sicilian: Richter-Rauzer: 7...a6 8 0-0-0 h6.} 11. Kb1 {[%emt 0:01:59]} (11. g4 $14 {might be stronger.}) 11... Nxd4 $11 {[%emt 0:10:41]} 12. Qxd4 {[%emt 0:04:16]} b5 {[%emt 0:00:46] The position is equal.} 13. g4 {[%emt 0:15:30] [#]} Bb7 $146 {[%emt 0:07:48]} ({Predecessor:} 13... Nd7 14. Qd2 b4 15. Ne2 Bb7 16. Nd4 d5 17. exd5 Bxd5 18. Be2 Qa5 19. b3 Bf6 {0-1 (55) Della Morte,G (2366)-Marin Ramirez,G (2221) Chess.com INT 2019}) 14. g5 {[%emt 0:09:52]} (14. Be2 $11) 14... hxg5 $15 {[%emt 0:01:42]} 15. Bxg5 {[%emt 0:00:23]} Rc8 {[%emt 0:03:34]} 16. Bd3 {[%emt 0:10:54]} Qc5 {[%emt 0:06:49]} 17. Be3 {[%emt 0:07:12]} Qxd4 {[%emt 0:01:25]} (17... Rh3 {feels hotter.} 18. Rhf1 Nd7 19. a4 b4) 18. Bxd4 {[%emt 0:00:06]} Rh3 {[%emt 0:01:56]} 19. Rdf1 {[%emt 0:05:25]} g5 {[%emt 0:08:09]} 20. Rhg1 {[%emt 0:07:51]} Nh5 {[%emt 0:03:02]} ({Don't play} 20... Rxh2 $6 21. Rxg5 Nxe4 22. Bxe4 $15 (22. Rg8+ $2 Kd7 $19)) 21. Rf2 {[%emt 0:02:34]} Nf4 {[%emt 0:01:36]} 22. Ne2 {[%emt 0:02:06]} e5 {[%emt 0:04:03]} 23. Be3 {[%emt 0:01:25]} Kd7 {[%emt 0:00:10]} 24. Rg3 {[%emt 0:01:36]} Rh7 {[%emt 0:02:29] 0x0.001f237c6d40dp-1022s more active pieces.} 25. Ng1 {[%emt 0:06:58]} (25. Bxf4 $17 {keeps fighting.} gxf4 26. Rgg2) 25... Rch8 $19 {[%emt 0:01:53]} 26. Bxf4 {[%emt 0:01:40]} gxf4 {[%emt 0:00:21]} ({Not} 26... exf4 27. Rgg2 $15) 27. Rgg2 {[%emt 0:00:05]} Bd8 {[%emt 0:00:06]} 28. a3 {[%emt 0:04:24]} Bb6 {[%emt 0:00:35]} 29. Re2 {[%emt 0:00:39]} Bxg1 {[%emt 0:01:48]} 30. Rxg1 {[%emt 0:00:05]} Rxh2 {[%emt 0:00:02]} 31. c4 {[%emt 0:03:04]} (31. Kc1 {was necessary.}) 31... Rxe2 {[%emt 0:00:23]} 32. Bxe2 {[%emt 0:00:02][%mdl 4096] Endgame KRB-KRB} Rh2 {[%emt 0:00:06]} 33. Bf1 {[%emt 0:01:55]} Rf2 {[%emt 0:01:41]} 34. cxb5 {[%emt 0:01:13]} Rxf3 {[%emt 0:00:04]} 35. bxa6 {[%emt 0:00:35]} Bxe4+ {[%emt 0:00:10]} 36. Kc1 {[%emt 0:00:13]} (36. Ka1 {was worth a try.}) 36... Kc7 {[%emt 0:01:38]} 37. Bb5 {[%emt 0:03:55]} Rf2 {[%emt 0:01:54]} (37... Kb6 $142 38. a4 Rg3) 38. b4 $2 {[%emt 0:02:35]} (38. Rg8 {is a better chance.}) 38... Rc2+ {[%emt 0:02:18] Black is clearly winning.} (38... Kb6 39. a4 $19) 39. Kd1 {[%emt 0:00:04]} Ra2 {[%emt 0:00:13] [#] White must now prevent ...Ra1+.} 40. Rg7 {[%emt 0:00:57]} Bd5 {[%emt 0:08:40] aiming for ...Kb6.} 41. a4 {[%emt 0:06:38]} f3 {[%emt 0:00:51][%cal Bf4f3,Bf3f2][%mdl 32] And now ...e4 would win.} 42. Rg8 {[%emt 0:04:09]} f2 {[%emt 0:02:44] ( -> ...Bf3+)} ({Stronger than} 42... Rg2 43. Re8 $11) 43. Kc1 {[%emt 0:01:01] [#]} Rxa4 $3 {[%emt 0:00:26][%mdl 512] White did not feel at home in the position after the opening.  Weighted Error Value: White=0.58/Black=0.08 (flawless)} 0-1

[Event "Czech Open-GM 2022"]
[Site "Pardubice"]
[Date "2022.07.24"]
[Round "3.24"]
[White "Skytte, Rasmus"]
[Black "Balinski, Damian"]
[Result "1-0"]
[ECO "B01"]
[WhiteElo "2349"]
[BlackElo "2198"]
[Annotator "TA"]
[PlyCount "73"]
[EventDate "2022.07.22"]
[EventType "swiss"]
[EventCountry "CZE"]
[SourceTitle "playchess.com"]
[Source "ChessBase"]
[SourceQuality "1"]
[TimeControl "40/5400+30:1800+30"]

{[%evp 12,73,53,51,62,50,62,57,69,55,81,49,146,108,115,115,194,199,217,152,213,206,330,207,232,158,374,300,311,0,0,0,185,195,183,184,184,194,183,184,203,240,204,180,451,0,214,63,206,237,2133,1911,1693,1511,29983,29983,29983,29984,29986,29987,29987,29988,29991,29992]} 1. e4 {[%emt 0:01:12]} d5 {[%emt 0:00:02]} 2. exd5 {[%emt 0:00:44]} Nf6 {[%emt 0:00:03]} 3. d4 {[%emt 0:01:01][%cal Bd2d4,Bd4d5][%mdl 32]} Nxd5 {[%emt 0:00:04]} 4. c4 {[%emt 0:03:20][%cal Bc2c4,Bc4c5][%mdl 32]} Nb6 {[%emt 0:00:02]} 5. Nf3 {[%emt 0:00:34]} Bg4 {[%emt 0:00:03]} 6. c5 {[%emt 0:01:58]} N6d7 {[%emt 0:00:03]} 7. Be2 {[%emt 0:02:19] Strongly threatening Qb3. is the legacy move (7.Bc4).} Nc6 {[%emt 0:00:47] B01: Scandinavian Defence.} 8. d5 {[%emt 0:10:52]} Bxf3 {[%emt 0:01:04]} 9. Bxf3 {[%emt 0:04:38]} Nce5 {[%emt 0:00:29] [#] White is slightly better.} 10. O-O $146 {[%emt 0:07:56]} ({Predecessor:} 10. Bf4 Nxf3+ 11. Qxf3 Nxc5 12. O-O g6 13. Qc3 f6 14. Qxc5 e5 15. Qb5+ Kf7 16. Be3 {1-0 (26) Sundsbo,S (1666)-Langmyhr,T (1937) Oslo 2014}) 10... Nxc5 {[%emt 0:15:13]} 11. Bf4 {[%emt 0:06:02]} Ng6 {[%emt 0:16:19]} ({Black should play} 11... Ncd3 $14) 12. Bg3 {[%emt 0:03:42] Hoping for Nc3. White is more active. A strong pair of Bishops.} e5 {[%emt 0:17:29]} 13. dxe6 $1 {[%emt 0:05:46]} fxe6 {[%emt 0:00:54]} (13... f5 $16) 14. b4 $18 {[%emt 0:04:21]} Nd7 {[%emt 0:00:26]} 15. Qb3 {[%emt 0:02:59][%mdl 1024] White has strong compensation.} Qf6 {[%emt 0:13:50]} (15... Bd6 $16) 16. Nc3 {[%emt 0:07:03][%cal Bb1c3,Bc3b5,Bb5d4][%mdl 32] Black must now prevent Rad1.} (16. Bxb7 Rb8 17. Bc6 Rxb4 $14) 16... O-O-O {[%emt 0:13:43]} (16... Nge5 {is a better defense.} 17. Bxe5 (17. Bxb7 Rb8 $18) 17... Nxe5) 17. Nb5 {[%emt 0:06:02]} (17. Qc4 Nde5 18. Bxb7+ Kxb7 $11) 17... Nde5 {[%emt 0:00:31]} 18. Rac1 {[%emt 0:10:59]} (18. Nxa7+ Kb8 19. Rad1 (19. Nb5 Nxf3+ 20. gxf3 e5 $11) 19... Nxf3+ 20. gxf3 e5 21. Rxd8+ Qxd8 $11) 18... Bd6 {[%emt 0:01:13] [#]} (18... Nxf3+ $16 19. gxf3 e5) 19. Bxb7+ $1 {[%emt 0:03:14][%mdl 512]} Kxb7 {[%emt 0:01:51]} 20. Qa4 $2 $40 {[%emt 0:05:43][%mdl 128] White has some attack.} (20. Qe3 $18 Ra8 21. Rfd1) 20... a6 $11 {[%emt 0:00:52]} 21. Nd4 {[%emt 0:01:27] b5 is the strong threat.} Bc5 $2 {[%emt 0:13:26]} 22. Bxe5 $18 {[%emt 0:05:47] Dancing on a razor blade.} Nxe5 {[%emt 0:01:30]} 23. bxc5 {[%emt 0:00:49][%cal Bb4c5,Bc5c6][%mdl 32] White threatens Rb1+ and mate.} Rxd4 {[%emt 0:00:04]} 24. c6+ {[%emt 0:00:41][%mdl 64] Deflection} Kc8 {[%emt 0:00:41]} 25. Qxa6+ {[%emt 0:00:17]} (25. Qxd4 $2 Nf3+ $1 {[%mdl 512]} 26. gxf3 Qxd4 $19) 25... Kd8 {[%emt 0:00:02] Threatens to win with ...Rf8.} 26. Qa8+ {[%emt 0:00:44][%mdl 64] Skewer} Ke7 {[%emt 0:00:01]} 27. Qxh8 {[%emt 0:00:15]} Rg4 $2 {[%emt 0:02:14]} (27... Nf3+ {was called for.} 28. gxf3 Qg6+ 29. Kh1 Rd8 30. Qxd8+ Kxd8) 28. f4 $2 {[%emt 0:02:26]} ({Worse is} 28. Qc8 Rxg2+ 29. Kxg2 Qf3+ 30. Kg1 Qg4+ 31. Kh1 Qf3+ 32. Kg1 Qg4+ 33. Kh1 Qf3+ 34. Kg1 $11) (28. Rfd1 $18 Qf8 29. Qxh7) 28... Nd3 $2 {[%emt 0:00:14] [#]} (28... Nf3+ $11 29. Rxf3 Qb2) 29. Qc8 $2 {[%emt 0:00:54]} (29. Qb8 $1 $18 {[%cal Rb8c7]} Qd4+ 30. Kh1) 29... Qd4+ {[%emt 0:00:47]} (29... Qb2 $1 $14 30. Qxc7+ Kf6 31. Qd8+ Kf7) 30. Kh1 {[%emt 0:00:06]} Nf2+ {[%emt 0:00:53] [#]} (30... Nxc1 31. Qxc7+ (31. Rxc1 Qd6 $11) 31... Kf6) 31. Rxf2 $1 {[%emt 0:00:17]} Qxf2 {[%emt 0:00:02]} 32. Qxc7+ {[%emt 0:00:37] KQR-KQR} Kf8 {[%emt 0:01:01]} 33. Qb8+ {[%emt 0:00:45] White mates.} Kf7 {[%emt 0:00:11]} 34. Qb7+ {[%emt 0:00:06]} Kf6 {[%emt 0:00:46]} 35. c7 {[%emt 0:00:36]} Rxf4 {[%emt 0:00:26]} 36. Qb1 {[%emt 0:00:37]} (36. c8=Q $2 {[#] is a self mate.} Qf1+ $3 {[%mdl 512]} 37. Rxf1 Rxf1#) 36... Rg4 {[%emt 0:00:39]} 37. Rf1 {[%emt 0:00:15] Weighted Error Value: White=0.61/Black=0.84} 1-0

[Event "Czech Open-GM 2022"]
[Site "Pardubice"]
[Date "2022.07.24"]
[Round "3.25"]
[White "Taborsky, Rostislav"]
[Black "Stauskas, Lukas"]
[Result "1-0"]
[ECO "B48"]
[WhiteElo "2192"]
[BlackElo "2348"]
[Annotator "TA"]
[PlyCount "119"]
[EventDate "2022.07.22"]
[EventType "swiss"]
[EventCountry "CZE"]
[SourceTitle "playchess.com"]
[Source "ChessBase"]
[SourceQuality "1"]
[TimeControl "40/5400+30:1800+30"]

{[%evp 11,119,38,35,0,11,19,35,37,36,29,70,75,134,120,134,22,55,44,79,80,66,0,14,18,77,63,62,34,82,99,139,140,129,143,142,142,120,137,125,91,89,98,353,239,242,205,143,0,222,209,219,0,68,0,195,70,92,92,147,146,142,137,146,141,147,148,554,114,243,206,209,134,147,95,90,27,95,31,39,32,83,41,117,117,117,117,117,117,117,117,117,117,117,117,117,117,117,117,117,8,348,0,121,125,29965,29961,29975,29976,29976,6107]} 1. e4 {[%emt 0:08:51]} c5 {[%emt 0:00:27]} 2. Nf3 {[%emt 0:00:09]} e6 {[%emt 0:00:11]} 3. d4 {[%emt 0:00:14]} cxd4 {[%emt 0:00:07]} 4. Nxd4 {[%emt 0:00:01]} Nc6 {[%emt 0:00:09]} 5. Nc3 {[%emt 0:00:07]} Qc7 {[%emt 0:00:06]} 6. Be3 {[%emt 0:00:51]} a6 {[%emt 0:00:12]} 7. g4 {[%emt 0:01:22][%cal Bg2g4,Bg4g5][%mdl 32] B48: Sicilian: Taimanov: 5 Nc3 Qc7 6 Be3 a6 without Be2.} b5 8. Nxc6 dxc6 {[%emt 0:12:31]} 9. Qf3 {[%emt 0:05:06] White is slightly better.} e5 {[%emt 0:03:45]} 10. a4 {[%emt 0:01:53][%cal Ra4b5] [#]} b4 $146 {[%emt 0:04:35]} ({Predecessor:} 10... Bb7 11. h4 Bb4 12. g5 Ne7 13. h5 Rf8 14. Bh3 Bc8 15. h6 gxh6 16. Bxc8 Nxc8 17. Rxh6 {1-0 (36) Karacsonyi,K (2107)-Grezels,F (2219) Belgrade 2021}) 11. Nb1 {[%emt 0:00:21]} Nf6 {[%emt 0:02:56]} (11... Be6 $142) 12. g5 $1 $16 {[%emt 0:26:21]} Ng4 {[%emt 0:02:12]} 13. Bc4 {[%emt 0:00:09]} (13. Bd2 $16) 13... Nxe3 {[%emt 0:00:39]} 14. fxe3 {[%emt 0:00:40]} Bc5 {[%emt 0:04:18]} 15. Nd2 {[%emt 0:03:10]} O-O {[%emt 0:05:46][%cal Ob4b3]} 16. Ke2 {[%emt 0:07:05]} (16. O-O-O $14) 16... Kh8 {[%emt 0:01:46]} (16... b3 $5) 17. Raf1 {[%emt 0:08:36]} Qd8 {[%emt 0:27:18]} (17... a5 $11) 18. Qg3 {[%emt 0:14:39]} Ra7 {[%emt 0:01:22]} 19. h4 {[%emt 0:02:39]} f5 {[%emt 0:12:48]} (19... Rd7 $1 $14 20. Nb3 Bd6) 20. gxf6 $1 {[%emt 0:03:29]} (20. Qxe5 $6 Bd6 21. Qd4 Qe7 22. exf5 Bxf5 $11) 20... Rxf6 {[%emt 0:00:06]} 21. Rxf6 {[%emt 0:00:23] The board is on fire.} Qxf6 {[%emt 0:00:06]} 22. Nf3 {[%emt 0:06:59]} Be6 {[%emt 0:05:06]} 23. Bxe6 {[%emt 0:03:12]} (23. Nxe5 $6 Bd6 24. Bxe6 Bxe5 $11) 23... Qxe6 {[%emt 0:00:05]} 24. b3 {[%emt 0:00:07] Inhibits Qc4+.} (24. Nxe5 $6 Re7 25. Rf1 Re8 26. Nf7+ Kg8 $11) 24... Bd6 {[%emt 0:01:59]} 25. Rd1 {[%emt 0:01:26]} h6 {[%emt 0:00:49] Inhibits Ng5.} 26. h5 {[%emt 0:00:42]} Be7 $2 {[%emt 0:03:23][%mdl 8192]} (26... Rf7 $16 {was worth a try.}) 27. Qg6 {[%emt 0:04:04]} (27. Nxe5 Ra8 28. Ng6+ Kg8 $18) 27... Qh3 {[%emt 0:01:05]} 28. Qe8+ {[%emt 0:00:24]} Kh7 {[%emt 0:00:05]} 29. Qg6+ {[%emt 0:00:02]} (29. Rg1 $1 $16 {Intending Qg6+ and mate.} Bf6 30. Qg6+ (30. Nxe5 $2 Qh2+ 31. Kf1 Qxe5 $19) 30... Kh8 31. Qf5 (31. Qe8+ Kh7 $16) 31... Qxf5 32. exf5) 29... Kh8 $1 $18 {[%emt 0:00:06]} 30. Rg1 {[%emt 0:00:53][%csl Gg1][%cal Rg6g7]} (30. Qe8+ $6 Kh7 31. Qg6+ (31. Rg1 Bf6 $16) 31... Kh8) 30... Bf6 {[%emt 0:00:53]} 31. Qe8+ $2 $40 {[%emt 0:01:03][%mdl 128] White mounts an attack.} (31. Qf5 $1 $18 {[%cal Rf5h3]} Qxf5 32. exf5) 31... Kh7 $14 {[%emt 0:00:01]} 32. Qg6+ {[%emt 0:00:41]} (32. Nxe5 $2 Qh2+ 33. Kf1 Qxe5 $19) (32. a5 $1 $14) 32... Kh8 $18 {[%emt 0:00:02]} 33. Rg2 {[%emt 0:00:29]} ({Resist} 33. Qe8+ Kh7 34. Qg6+ (34. Nxe5 $2 Qh2+ 35. Kf1 Qxe5 $19) 34... Kh8) (33. Qf5 $1 $18 {[%cal Rf5h3]} Qxf5 34. exf5) 33... Qd7 {[%emt 0:00:46]} 34. Nd2 {[%emt 0:00:35]} Ra8 {[%emt 0:00:33]} (34... Qh3 $142) 35. Qf5 $16 {[%emt 0:00:12]} Qe7 {[%emt 0:00:42]} 36. Nc4 {[%emt 0:00:25]} Rd8 {[%emt 0:00:36]} 37. Rg1 {[%emt 0:00:30][%cal Bg2g1,Bg1f1,Bf1f5][%mdl 32]} Rf8 {[%emt 0:01:09]} 38. Rf1 {[%emt 0:00:34][%cal Oc4e5] White is much more active.} Qe8 {[%emt 0:00:32][%mdl 8192] [#]} (38... Kg8 $16 39. Qh3 Kh7) 39. Qg6 $2 {[%emt 0:00:26]} (39. Nxe5 $1 $18 {[%mdl 512] is the precise move to win. Ng6+ is the strong threat.} Kg8 40. Nd3 (40. Ng6 Rf7 $18)) 39... Qxg6 {[%emt 0:01:20]} (39... Qe6 $16) 40. hxg6 {[%emt 0:00:02][%mdl 4096] Endgame KRB-KRN} Rd8 {[%emt 0:00:18]} 41. Rf5 {[%emt 0:10:36]} Re8 {[%emt 0:00:11]} 42. Nd6 {[%emt 0:02:11]} (42. Nb2 $142) 42... Re6 {[%emt 0:00:26]} 43. Nf7+ {[%emt 0:05:10]} Kg8 {[%emt 0:00:07]} 44. Kf3 {[%emt 0:01:17]} (44. a5 $1 $16) 44... Kf8 $14 {[%emt 0:02:53]} 45. Kg4 {[%emt 0:01:47]} Ke8 {[%emt 0:01:27]} ({Black should try} 45... Ke7 $14) 46. Kh5 {[%emt 0:02:03][%cal Of7h6]} Ke7 {[%emt 0:07:36] [#]} ({Black should play} 46... c5 $14) 47. Nxh6 $1 $16 {[%emt 0:03:54][%mdl 512]} gxh6 {[%emt 0:01:22]} 48. Kxh6 {[%emt 0:00:12] KRB-KR} Rd6 {[%emt 0:00:49]} 49. g7 {[%emt 0:02:15]} Rd8 {[%emt 0:14:29] Hoping for ...Rg8.} 50. Kh7 {[%emt 0:00:21] Prevents Rg8.} Bxg7 {[%emt 0:00:18]} 51. Kxg7 {[%emt 0:00:04] KR-KR} Rd2 {[%emt 0:00:06]} 52. Rxe5+ {[%emt 0:00:33]} Kd6 {[%emt 0:00:07]} 53. Rf5 {[%emt 0:04:28] Strongly threatening Kf7.} Rxc2 {[%emt 0:00:06] [#]} 54. Kf7 $1 {[%emt 0:00:33] aiming for e5+.} Rh2 {[%emt 0:06:23] [#]} 55. e5+ {[%emt 0:01:00]} (55. Rf6+ $1 $16 Kd7 56. e5 Rh7+ 57. Kg6) 55... Kc7 $2 {[%emt 0:00:04][%mdl 8192]} (55... Kd5 $1 $11) 56. e6 $2 {[%emt 0:00:26]} (56. e4 $18) 56... Rh7+ {[%emt 0:00:28]} (56... Kd6 $11 {keeps the balance.}) 57. Kg6 {[%emt 0:01:01]} Re7 {[%emt 0:01:04][%mdl 8192]} (57... Rh1 $16) 58. Kf6 {[%emt 0:00:20] White mates.} Kd6 {[%emt 0:00:26]} 59. Re5 {[%emt 0:00:22]} a5 {[%emt 0:03:53]} 60. e4 {[%emt 0:00:22] Weighted Error Value: White=0.45/Black=0.55} 1-0